bitfinex/quotes_SOLUSD_20250722
["timestamp","ask_amount","ask_price","bid_price","bid_amount"]
[1753187268135,0.06,200.31,200.27,42.65174378]
[1753187268430,0.06,200.31,200.3,7.17174378]
[1753187269103,0.06,200.31,200.3,7.84174378]
[1753187270134,0.06,200.31,200.3,12.83425501]
[1753187274604,0.06,200.31,200.3,12.16425501]
[1753187274813,0.06,200.32,200.3,12.83425501]
[1753187275017,0.06,200.32,200.31,43.90096997]
[1753187276029,75.16,200.4,200.31,43.90096997]
[1753187276030,0.06,200.36,200.31,91.67791593]
[1753187276230,0.06,200.4,200.35,40.34348756]
[1753187276410,0.06,200.4,200.39,7.17174378]
[1753187276916,0.06,200.4,200.39,14.34348756]
[1753187277117,0.1,200.43,200.39,15.01348756]
[1753187277324,0.1,200.43,200.42,7.17174378]
[1753187277506,0.1,200.43,200.42,42.79174378]
[1753187277711,26.71,200.51,200.42,43.46174378]
[1753187277926,26.71,200.51,200.43,0.67]
[1753187278134,0.71,200.51,200.5,7.17174378]
[1753187278343,26.71,200.51,200.5,7.17174378]
[1753187278547,0.71,200.51,200.5,7.17174378]
[1753187279026,26.71,200.51,200.5,7.17174378]
[1753187280613,43.49468397,200.51,200.41,0.49897709]
[1753187280820,0.71,200.5,200.48,7.17174378]
[1753187281023,0.71,200.49,200.48,7.17174378]
[1753187284123,5.69777993,200.49,200.41,4.98962422]
[1753187284318,26.0,200.5,200.48,7.17174378]
[1753187284652,26.71,200.5,200.49,7.17174378]
[1753187284854,75.1,200.53,200.49,7.17174378]
[1753187285023,75.81,200.53,200.52,7.17174378]
[1753187285843,75.1,200.53,200.52,7.17174378]
[1753187286222,2.60382124,200.55,200.52,7.17174378]
[1753187286429,4.98584996,200.57,200.53,7.17174378]
[1753187287156,0.71,200.56,200.53,4.47448451]
[1753187287528,0.71,200.55,200.53,4.47448451]
[1753187287956,0.71,200.54,200.53,4.47448451]
[1753187288448,0.71,200.54,200.52,4.47448451]
[1753187288634,0.71,200.54,179.89,18.0]
[1753187288635,0.71,200.54,200.5,4.47448451]
[1753187289561,5.69667198,200.54,200.5,4.47448451]
[1753187289730,4.98667198,200.54,200.5,4.47448451]
[1753187290053,0.71,200.53,200.5,4.47448451]
[1753187290241,4.98667198,200.54,200.51,4.47448451]
[1753187290438,0.71,200.52,200.51,4.47448451]
[1753187291224,5.6971318,200.52,200.5,4.47448451]
[1753187291539,26.71,200.51,200.47,4.47448451]
[1753187291737,0.71,200.5,200.47,4.47448451]
[1753187291935,26.0,200.51,200.47,4.47448451]
[1753187292249,26.71,200.49,200.45,39.97448451]
[1753187292459,0.71,200.48,200.45,39.97448451]
[1753187293055,0.71,200.48,200.46,4.47448451]
[1753187293228,26.0,200.49,200.45,35.5]
[1753187293229,26.0,200.49,200.47,4.47448451]
[1753187293926,75.1,200.48,200.47,4.47448451]
[1753187294343,75.81,200.48,200.46,4.47448451]
[1753187296729,26.0,200.44,200.33,0.67]
[1753187296957,21.25916848,200.43,200.37,4.47448451]
[1753187297250,16.78468397,200.41,200.36,4.47448451]
[1753187297551,16.78468397,200.41,200.37,4.47448451]
[1753187297859,0.68,200.4,200.37,4.47448451]
[1753187298155,0.68,200.4,200.38,0.03]
[1753187298358,21.77460943,200.41,200.38,0.03]
[1753187298554,0.68,200.39,200.38,0.03]
[1753187299754,111.26,200.42,200.38,4.50448451]
[1753187300078,0.68,200.41,200.38,0.03]
[1753187300430,0.68,200.4,200.38,0.03]
[1753187300849,47.25916848,200.39,200.38,0.03]
[1753187301359,47.93916848,200.39,200.38,0.03]
[1753187301862,55.5349375,200.39,200.38,0.03]
[1753187303664,75.1,200.38,200.34,0.03]
[1753187303865,52.25043376,200.35,200.34,0.03]
[1753187304044,87.73043376,200.35,200.34,0.03]
[1753187304243,88.41043376,200.35,200.34,0.03]
[1753187305255,91.11421032,200.35,200.34,0.03]
[1753187308339,91.11421032,200.35,200.28,7.17826107]
[1753187308340,26.0,200.31,200.28,7.17826107]
[1753187308653,26.0,200.31,200.27,7.20826107]
[1753187308654,75.07,200.3,200.27,7.20826107]
[1753187308861,75.75,200.3,200.27,7.20826107]
[1753187309054,75.75,200.29,200.27,0.03]
[1753187309364,75.07,200.29,200.27,7.20826107]
[1753187310643,23.96294504,200.33,200.27,7.20826107]
[1753187310644,110.61,200.34,200.28,7.85826107]
[1753187310969,101.07,200.34,200.32,7.17826107]
[1753187311174,101.07,200.34,200.33,7.17826107]
[1753187311361,101.07,200.34,200.29,0.68]
[1753187311362,101.07,200.34,200.32,7.17826107]
[1753187311561,75.07,200.34,200.33,7.17826107]
[1753187312067,75.07,200.34,200.32,7.17826107]
[1753187312269,75.07,200.34,200.31,7.17826107]
[1753187313262,75.07,200.34,200.32,0.03]
[1753187313459,75.07,200.34,200.32,7.20826107]
[1753187315686,75.07,200.34,200.33,7.85826107]
[1753187316251,80.0195414,200.42,200.33,0.44]
[1753187316581,106.0195414,200.42,200.38,7.17826107]
[1753187316883,0.68,200.41,200.38,7.17826107]
[1753187317041,0.68,200.4,200.38,7.17826107]
[1753187317464,0.68,200.4,200.35,4.99111216]
[1753187317744,0.68,200.4,200.39,7.17826107]
[1753187318156,26.68,200.4,200.39,7.17826107]
[1753187318564,26.0,200.36,200.32,0.03]
[1753187318744,61.58,200.36,200.32,7.20826107]
[1753187318948,26.68,200.36,200.33,7.17826107]
[1753187319357,0.68,200.35,200.33,7.17826107]
[1753187319674,0.68,200.35,200.32,7.20826107]
[1753187319870,26.0,200.35,200.34,0.03]
[1753187320569,26.68,200.35,200.34,0.03]
[1753187320892,48.45594925,200.35,200.34,0.03]
[1753187321561,55.63421032,200.35,200.34,0.03]
[1753187323786,55.63421032,200.35,200.32,0.03]
[1753187323787,25.53914504,200.33,200.32,0.03]
[1753187323996,91.08914504,200.33,200.32,0.03]
[1753187324363,91.76914504,200.33,200.32,0.03]
[1753187324558,0.68,200.33,200.32,0.03]
[1753187326285,31.67176359,200.33,200.32,0.03]
[1753187327196,48.45644756,200.33,200.32,0.03]
[1753187327681,84.07644756,200.33,200.32,0.03]
[1753187328594,26.0,200.33,200.32,0.03]
[1753187328887,26.67,200.33,200.32,0.03]
[1753187329093,0.67,200.33,200.32,0.03]
[1753187329295,36.27,200.33,200.32,0.03]
[1753187329872,53.05468397,200.33,200.32,0.03]
[1753187330173,42.78468397,200.29,200.27,0.03]
[1753187330399,96.27769375,200.28,200.27,0.03]
[1753187330570,29.62595482,200.28,200.27,0.03]
[1753187331781,36.15065675,200.28,200.27,1e-08]
[1753187334076,32.23275719,200.28,200.27,1e-08]
[1753187334298,25.05449612,200.28,200.27,1e-08]
[1753187334501,32.23275719,200.28,200.27,1e-08]
[1753187336692,20.06148634,200.28,200.27,1e-08]
[1753187337003,54.99148634,200.28,200.27,1e-08]
[1753187337590,60.65449612,200.28,200.27,1e-08]
[1753187340583,21.77769375,200.28,200.27,1e-08]
[1753187340789,7.84826107,200.31,200.27,7.17826108]
[1753187340790,35.56,200.3,200.27,7.17826108]
[1753187341185,26.0,200.28,200.27,1e-08]
[1753187341594,86.21294504,200.28,200.27,1e-08]
[1753187341777,26.0,200.28,200.27,1e-08]
[1753187341978,35.56,200.29,200.27,1e-08]
[1753187342790,40.55294948,200.29,200.27,1e-08]
[1753187343195,17.45468397,200.28,200.27,1e-08]
[1753187343590,24.63294504,200.28,200.27,1e-08]
[1753187344310,16.78468397,200.28,200.27,1e-08]
[1753187344483,43.15256728,200.29,200.27,1e-08]
[1753187344484,35.56,200.29,200.27,1e-08]
[1753187344690,26.0,200.28,200.27,1e-08]
[1753187345096,7.59888517,200.31,200.27,7.17826108]
[1753187345302,7.59888517,200.31,200.27,4.9258439]
[1753187345508,26.0,200.29,200.28,4.92584389]
[1753187345910,4.99203164,200.32,200.28,4.92584389]
[1753187346209,21.77671561,200.32,200.28,4.92584389]
[1753187346406,21.77671561,200.32,200.28,4.48584389]
[1753187346717,26.0,200.29,200.28,4.48584389]
[1753187347012,181.48,200.33,200.28,4.92584389]
[1753187347195,26.0,200.31,200.3,7.17551832]
[1753187347692,0.06,200.34,200.3,7.61551832]
[1753187348008,26.0,200.33,200.32,7.17551832]
[1753187348900,100.5,200.33,200.32,7.17551832]
[1753187352326,74.5,200.33,200.32,7.61551832]
[1753187353119,0.06,200.34,200.32,7.61551832]
[1753187353317,0.06,200.34,200.33,7.17551832]
[1753187353511,0.06,200.34,200.33,7.61551832]
[1753187354228,0.06,200.34,200.33,8.11469467]
[1753187354400,0.06,200.34,200.33,13.10645826]
[1753187356417,0.06,200.34,200.33,12.16728191]
[1753187357005,0.06,200.34,200.33,12.60728191]
[1753187357802,0.06,200.34,200.33,7.17551832]
[1753187359517,0.72,200.34,200.31,7.17551832]
[1753187359705,0.72,200.34,200.32,7.17551832]
[1753187359906,26.0,200.33,200.31,7.17551832]
[1753187360109,26.0,200.33,200.32,7.17551832]
[1753187360914,0.06,200.34,200.32,7.17551832]
[1753187361432,0.72,200.34,200.32,7.17551832]
[1753187361605,0.72,200.34,200.29,4.99252497]
[1753187361606,0.06,200.34,200.33,7.17551832]
[1753187361811,2.60511782,200.45,200.35,1.657]
[1753187362015,0.72,200.53,200.42,7.17551832]
[1753187362016,0.66,200.5,200.42,7.17551832]
[1753187362223,2.6045689,200.49,200.42,7.61551832]
[1753187362936,28.6045689,200.49,200.42,12.60504032]
[1753187363231,26.0,200.49,200.42,0.44]
[1753187363462,0.06,200.53,200.42,0.44]
[1753187363463,3.26377964,200.51,200.42,8.11447052]
[1753187363934,26.0,200.49,200.42,8.11447052]
[1753187364430,26.0,200.47,200.42,7.61551832]
[1753187364623,26.66,200.46,200.42,7.17551832]
[1753187365032,31.70807168,200.48,200.42,7.17551832]
[1753187365935,4.98837676,200.47,200.42,7.17551832]
[1753187366226,31.70807103,200.48,200.42,7.17551832]
[1753187366433,31.70807103,200.48,200.41,7.17551832]
[1753187366434,0.72,200.43,200.41,7.17551832]
[1753187366735,0.06,200.43,200.42,7.17551832]
[1753187366914,26.06,200.43,200.42,7.17551832]
[1753187367753,26.72,200.43,200.42,7.17551832]
[1753187368417,26.0,200.42,200.39,4.99018737]
[1753187368622,26.0,200.42,200.41,7.17551832]
[1753187369725,26.66,200.42,200.39,7.17551832]
[1753187369932,26.0,200.42,200.39,7.17551832]
[1753187370128,0.66,200.41,200.39,7.17551832]
[1753187370330,0.66,200.41,200.36,36.1]
[1753187370529,0.66,200.4,200.37,7.17551832]
[1753187370825,0.66,200.39,200.32,36.06]
[1753187371140,0.66,200.39,200.36,7.17551832]
[1753187371141,26.0,200.38,200.36,7.17551832]
[1753187371861,26.0,200.38,200.32,36.06]
[1753187372161,0.66,200.37,200.34,7.17551832]
[1753187372642,0.66,200.37,200.35,7.17551832]
[1753187372840,26.0,200.38,200.35,7.17551832]
[1753187373544,26.66,200.38,200.35,7.17551832]
[1753187374049,26.66,200.38,200.32,41.49192912]
[1753187374050,26.0,200.39,200.37,7.17551832]
[1753187374248,26.0,200.39,200.38,7.17551832]
[1753187374545,26.0,200.39,200.35,0.44]
[1753187374546,26.66,200.39,200.32,41.03192912]
[1753187374725,26.0,200.38,200.35,7.17551832]
[1753187374928,26.66,200.38,200.36,7.17551832]
[1753187375250,26.66,200.38,200.35,7.17551832]
[1753187375849,26.0,200.39,200.36,7.17551832]
[1753187376844,0.66,200.39,200.36,7.17551832]
[1753187378426,24.02020229,200.43,200.3,0.49925112]
[1753187378427,26.0,200.38,200.3,0.49925112]
[1753187378623,26.0,200.32,200.28,7.17551832]
[1753187378846,26.66,200.31,200.26,7.17551832]
[1753187379357,0.66,200.3,200.26,7.17551832]
[1753187379734,0.66,200.29,200.25,7.17551832]
[1753187380142,0.66,200.28,200.25,7.17551832]
[1753187380750,26.66,200.28,200.24,7.17551832]
[1753187381547,26.0,200.29,200.26,7.17551832]
[1753187381859,0.66,200.28,200.25,7.17551832]
[1753187383638,26.66,200.28,200.24,7.17551832]
[1753187384048,26.66,200.28,200.25,7.17551832]
[1753187384360,26.66,200.28,200.23,0.03]
[1753187384860,26.0,200.24,200.23,0.03]
[1753187385044,33.17551832,200.24,200.23,0.03]
[1753187385356,33.83551832,200.24,200.23,0.03]
[1753187386777,7.17551832,200.26,200.23,0.03]
[1753187386957,0.66,200.27,200.23,7.20551832]
[1753187387273,2.60017419,200.3,200.25,7.17551832]
[1753187387274,0.66,200.29,200.25,7.17551832]
[1753187387637,26.0,200.27,200.25,7.17551832]
[1753187387830,0.66,200.29,200.25,7.17551832]
[1753187388743,43.15551832,200.3,200.23,0.03]
[1753187388944,26.0,200.27,200.24,7.17551832]
[1753187389258,0.72,200.32,200.26,7.17551832]
[1753187389455,0.72,200.32,200.28,7.17551832]
[1753187389666,26.72,200.31,200.27,7.17551832]
[1753187389859,0.72,200.31,200.28,7.17551832]
[1753187390049,26.72,200.31,200.28,7.17551832]
[1753187391362,0.72,200.3,200.28,7.17551832]
[1753187391955,0.72,200.3,200.27,7.17551832]
[1753187392160,26.0,200.31,200.27,7.17551832]
[1753187392375,26.72,200.29,200.26,7.17551832]
[1753187393672,26.0,200.29,200.28,7.17551832]
[1753187393872,5.92579052,200.36,200.28,7.61551832]
[1753187394165,26.0,200.33,200.3,7.17551832]
[1753187394342,0.72,200.35,200.31,7.17551832]
[1753187394666,0.72,200.37,200.34,7.17551832]
[1753187394867,0.06,200.38,200.34,7.17551832]
[1753187395038,26.0,200.35,200.32,7.17551832]
[1753187395554,0.72,200.36,200.32,7.17551832]
[1753187396176,26.0,200.35,200.34,7.17551832]
[1753187397240,26.0,200.35,200.32,0.44]
[1753187397466,0.06,200.38,200.35,6.1042]
[1753187397680,0.06,200.38,200.37,7.17551832]
[1753187398176,0.06,200.38,200.37,7.61551832]
[1753187398875,0.06,200.38,200.37,7.17551832]
[1753187401478,0.06,200.38,200.35,35.92]
[1753187401479,0.78,200.38,200.36,7.17551832]
[1753187401846,0.06,200.38,200.37,7.17551832]
[1753187402649,0.06,200.38,200.35,35.92]
[1753187402650,26.0,200.37,200.35,43.09551832]
[1753187402868,0.72,200.36,200.34,7.17551832]
[1753187403547,0.72,200.35,200.29,36.06]
[1753187403751,26.72,200.35,200.31,7.17551832]
[1753187403950,0.72,200.34,200.31,7.17551832]
[1753187404267,0.72,200.33,200.31,7.17551832]
[1753187404448,0.72,200.32,200.3,7.17551832]
[1753187404767,0.72,200.35,200.31,7.17551832]
[1753187404972,0.72,200.34,200.31,7.17551832]
[1753187405154,26.0,200.36,200.33,7.17551832]
[1753187405353,26.72,200.36,200.34,7.17551832]
[1753187406563,26.0,200.36,200.35,7.17551832]
[1753187407178,26.72,200.36,200.33,7.17551832]
[1753187407475,0.72,200.35,200.32,7.17551832]
[1753187407661,0.72,200.34,200.33,7.17551832]
[1753187407856,26.0,200.36,200.33,7.17551832]
[1753187408263,0.72,200.35,200.33,7.17551832]
[1753187409351,0.72,200.34,200.32,7.17551832]
[1753187409565,0.72,200.33,200.32,7.17551832]
[1753187410058,0.72,200.33,200.31,7.17551832]
[1753187410464,0.72,200.32,200.31,7.17551832]
[1753187411984,0.72,200.35,200.31,7.17551832]
[1753187412380,0.72,200.34,200.31,7.17551832]
[1753187412885,0.72,200.33,200.31,7.17551832]
[1753187413070,23.72,200.36,200.31,7.17551832]
[1753187415062,26.0,200.34,200.31,7.17551832]
[1753187415369,26.0,200.29,200.27,7.17551832]
[1753187415884,0.72,200.33,200.28,7.83551832]
[1753187416087,26.0,200.34,200.32,7.17551832]
[1753187416269,0.72,200.33,200.3,7.17551832]
[1753187416466,0.72,200.32,200.29,7.17551832]
[1753187416670,26.72,200.31,200.28,7.17551832]
[1753187416970,0.72,200.3,200.27,7.17551832]
[1753187417171,0.72,200.29,200.26,7.17551832]
[1753187417362,35.96,200.33,200.23,0.03]
[1753187417363,0.7,200.28,200.27,7.17551832]
[1753187417678,0.7,200.28,200.25,7.17551832]
[1753187418881,26.0,200.27,200.23,0.72]
[1753187419067,26.0,200.3,200.23,0.72]
[1753187419068,26.0,200.3,200.26,7.86551832]
[1753187419387,0.7,200.29,200.26,4.48594697]
[1753187419587,0.7,200.28,200.26,4.48594697]
[1753187419766,26.0,200.29,200.26,4.48594697]
[1753187419969,26.0,200.29,200.28,4.48594697]
[1753187420491,26.7,200.3,200.27,4.48594697]
[1753187420689,53.44468397,200.33,200.29,4.48594697]
[1753187420892,4.48594697,200.35,200.31,4.48594697]
[1753187420893,16.78468397,200.34,200.31,4.48594697]
[1753187421073,0.7,200.35,200.32,4.48594697]
[1753187421274,0.7,200.35,200.33,4.48594697]
[1753187421473,16.78468397,200.36,200.34,4.48594697]
[1753187421683,26.0,200.35,200.34,4.48594697]
[1753187421909,13.39133419,200.38,200.34,4.48594697]
[1753187421910,9.21133168,200.38,200.34,4.48594697]
[1753187422196,9.21133168,200.38,200.37,4.48594697]
[1753187423169,9.21133168,200.38,200.37,7.17008608]
[1753187423686,35.21133168,200.38,200.37,7.17008608]
[1753187425204,9.21133168,200.38,200.37,7.17008608]
[1753187425391,9.91133168,200.38,200.36,7.17008608]
[1753187426480,9.91133168,200.38,200.35,7.17008608]
[1753187426674,26.0,200.34,200.28,0.69]
[1753187426874,26.0,200.34,200.32,7.17008608]
[1753187427100,26.0,200.34,200.31,7.17008608]
[1753187427101,26.7,200.34,200.31,7.17008608]
[1753187427335,26.0,200.3,200.28,7.17008608]
[1753187427549,26.0,200.3,200.29,7.17008608]
[1753187428226,0.7,200.33,200.29,7.17008608]
[1753187428406,26.0,200.33,200.31,7.17008608]
[1753187429314,26.0,200.33,200.32,7.17008608]
[1753187430294,26.0,200.33,200.31,7.17008608]
[1753187430499,9.21133168,200.38,200.32,7.86008608]
[1753187430694,9.21133168,200.38,200.37,7.17008608]
[1753187431107,26.0,200.35,200.33,0.69]
[1753187431318,26.0,200.35,200.29,0.49927604]
[1753187431319,26.0,200.35,200.34,7.86008608]
[1753187432236,26.0,200.35,200.34,7.17008608]
[1753187432524,26.0,200.35,200.33,7.17008608]
[1753187432727,0.7,200.34,200.32,7.17008608]
[1753187433319,26.0,200.35,200.33,7.17008608]
[1753187435221,26.7,200.35,200.33,7.17008608]
[1753187435807,26.0,200.35,200.33,7.17008608]
[1753187436520,26.0,200.31,200.29,7.17008608]
[1753187437420,26.0,200.31,200.26,0.72]
[1753187437621,26.7,200.31,200.29,7.17008608]
[1753187438434,26.0,200.31,200.26,0.03]
[1753187438611,26.0,200.29,200.26,7.20008608]
[1753187438808,0.7,200.28,200.26,0.03]
[1753187439003,26.0,200.29,200.26,0.03]
[1753187439004,26.7,200.29,200.27,7.17008608]
[1753187439217,0.7,200.29,200.27,7.17008608]
[1753187439618,26.7,200.29,200.26,7.20008608]
[1753187439930,0.7,200.28,200.26,7.20008608]
[1753187440114,0.7,200.27,200.26,0.03]
[1753187441023,17.48468397,200.29,200.26,7.20008608]
[1753187441239,26.0,200.27,200.26,7.20008608]
[1753187441413,26.0,200.27,200.26,0.03]
[1753187441725,0.7,200.27,200.26,0.03]
[1753187442123,26.7,200.27,200.26,0.03]
[1753187442310,50.65477005,200.27,200.26,0.03]
[1753187442506,80.61477005,200.27,200.26,0.03]
[1753187442824,83.2147143,200.27,200.26,0.03]
[1753187446079,91.1281143,200.27,200.26,0.03]
[1753187447149,83.95802822,200.27,200.26,0.03]
[1753187447347,83.95802822,200.27,200.26,1e-08]
[1753187448314,124.20969856,200.27,200.26,1e-08]
[1753187453018,126.81665908,200.27,200.26,1e-08]
[1753187455541,136.81665908,200.27,200.26,1e-08]
[1753187457121,72.74468397,200.23,200.22,0.03]
[1753187457340,112.95635431,200.23,200.22,0.03]
[1753187457729,113.64635431,200.23,200.22,0.03]
[1753187458328,113.64635431,200.23,200.21,0.03]
[1753187458531,72.74468397,200.19,200.18,0.03]
[1753187458833,112.93635431,200.19,200.18,0.03]
[1753187459140,113.62635431,200.19,200.18,0.03]
[1753187461224,51.74018801,200.18,200.08,0.71]
[1753187461471,56.92185835,200.18,200.08,0.71]
[1753187461775,82.74468397,200.15,200.14,1e-08]
[1753187461927,82.74468397,200.12,200.11,1e-08]
[1753187462119,72.74468397,200.08,200.07,0.03]
[1753187462326,112.97635431,200.08,200.07,0.03]
[1753187462527,46.74468397,200.07,200.03,0.03]
[1753187462741,72.74468397,200.04,200.03,0.03]
[1753187463044,108.50468397,200.04,200.03,0.03]
[1753187463226,113.68635431,200.04,200.03,0.03]
[1753187463630,117.66657915,200.04,200.03,0.03]
[1753187463835,116.97657915,200.04,200.03,0.03]
[1753187464232,120.10820697,200.04,200.03,0.03]
[1753187464432,125.10720716,200.04,200.03,0.03]
[1753187467134,92.85838721,200.04,200.03,0.03]
[1753187467447,100.06023779,200.04,200.03,0.03]
[1753187467757,62.21053112,200.04,200.03,0.03]
[1753187467935,62.90053112,200.04,200.03,0.03]
[1753187468144,65.51080042,200.04,200.03,0.03]
[1753187468325,70.50980061,200.04,200.03,0.03]
[1753187468748,78.45282551,200.04,200.03,0.03]
[1753187469055,30.49197474,200.04,200.03,0.74]
[1753187469350,78.45282551,200.04,200.03,0.03]
[1753187469540,79.14282551,200.04,200.03,0.03]
[1753187469737,16.78468397,200.03,200.02,0.03]
[1753187469947,24.67653455,200.03,200.02,0.03]
[1753187470145,33.1659088,200.03,200.02,0.03]
[1753187470346,33.1659088,200.03,200.02,1e-08]
[1753187470659,26.38122483,200.03,200.01,1e-08]
[1753187470843,60.43653455,200.02,200.01,1e-08]
[1753187471049,42.78468397,199.99,199.98,0.03]
[1753187471359,94.02873038,199.99,199.98,1e-08]
[1753187471529,104.71873038,199.99,199.98,1e-08]
[1753187471963,104.71873038,199.99,199.87,2.2232]
[1753187472280,49.98653455,199.88,199.83,6.1819]
[1753187472429,26.0,199.84,199.83,6.1819]
[1753187472634,26.0,199.84,199.83,13.38375058]
[1753187472840,7.20185058,199.91,199.83,18.38800419]
[1753187473029,26.0,199.87,199.84,0.71]
[1753187473436,31.00325211,199.87,199.86,7.20185058]
[1753187473634,31.00325211,199.87,199.86,0.71]
[1753187473846,40.78303764,199.88,199.86,0.71]
[1753187474053,35.78,199.88,199.86,7.91185058]
[1753187474257,26.0,199.86,199.83,6.1819]
[1753187474462,26.0,199.86,199.85,7.20185058]
[1753187474831,26.0,199.86,199.85,7.91185058]
[1753187475053,26.0,199.86,199.85,0.71]
[1753187475537,31.00350245,199.86,199.85,0.71]
[1753187475956,35.8,199.87,199.85,0.71]
[1753187476332,26.0,199.85,199.84,7.20185058]
[1753187476646,26.0,199.85,199.83,6.1819]
[1753187477057,26.0,199.85,199.84,0.71]
[1753187477555,35.8,199.86,199.84,0.71]
[1753187477757,35.8,199.86,199.84,7.91185058]
[1753187477950,26.0,199.84,199.83,6.1819]
[1753187478154,26.0,199.83,199.82,1.5132]
[1753187478342,26.0,199.83,199.82,8.71505058]
[1753187478541,26.0,199.83,199.82,9.39505058]
[1753187478752,35.78,199.9,199.82,14.39955463]
[1753187479061,7.20185058,199.86,199.83,0.68]
[1753187479243,31.0040032,199.84,199.83,0.68]
[1753187479444,42.98185058,199.87,199.83,0.68]
[1753187479445,40.78378624,199.85,199.83,0.68]
[1753187479853,26.0,199.82,199.81,7.23185058]
[1753187480560,26.0,199.82,199.81,7.91185058]
[1753187480757,61.78,199.87,199.81,12.91660509]
[1753187480958,26.0,199.87,199.86,7.20185058]
[1753187481163,41.73546576,199.91,199.86,12.88523069]
[1753187481360,41.73546576,199.91,199.86,5.00338011]
[1753187481664,5.95546576,199.91,199.89,7.20185058]
[1753187481962,5.95546576,199.91,199.9,7.87185058]
[1753187482358,5.95546576,199.91,199.9,0.67]
[1753187482666,5.95546576,199.91,199.9,7.87185058]
[1753187483244,5.95546576,199.91,199.9,12.87435183]
[1753187483439,5.95546576,199.91,199.9,5.67250125]
[1753187483668,5.95546576,199.91,199.9,12.87435183]
[1753187484047,5.95546576,199.91,199.9,13.37460195]
[1753187484561,5.95546576,199.91,199.9,12.87435183]
[1753187484757,26.0,199.95,199.9,12.87435183]
[1753187484960,26.0,199.95,199.94,7.20185058]
[1753187485173,26.0,199.95,199.94,0.67]
[1753187485664,26.0,199.95,199.94,7.87185058]
[1753187486363,26.0,199.95,199.94,7.20185058]
[1753187486942,26.0,199.95,199.88,2.3042]
[1753187486943,33.91185058,199.95,199.88,2.3042]
[1753187487150,26.0,199.91,199.89,7.20185058]
[1753187487338,26.0,199.91,199.89,7.87185058]
[1753187487944,26.0,199.93,199.9,7.87185058]
[1753187488250,26.0,199.93,199.92,7.20185058]
[1753187488451,26.0,199.93,199.92,7.87185058]
[1753187488862,26.0,199.95,199.92,7.87185058]
[1753187489081,26.0,199.95,199.94,7.20185058]
[1753187489245,26.0,199.95,199.94,7.87185058]
[1753187489562,35.78,200.0,199.94,12.87335103]
[1753187489762,4.999557,200.02,199.98,7.20185058]
[1753187489962,26.0,199.99,199.97,7.20185058]
[1753187490165,26.0,199.99,199.96,7.20185058]
[1753187490350,2.59668192,200.04,199.98,7.20185058]
[1753187490551,40.77871052,200.06,200.02,7.20185058]
[1753187490756,40.77871052,200.06,200.01,7.20185058]
[1753187490955,26.0,200.03,200.01,7.20185058]
[1753187491159,26.0,200.03,200.02,7.87185058]
[1753187491379,35.78,200.06,200.02,7.87185058]
[1753187491578,10.79398572,200.07,200.03,7.20185058]
[1753187491780,5.79568098,200.07,200.03,7.20185058]
[1753187491951,5.79568098,200.07,200.04,7.20185058]
[1753187492471,26.0,200.04,200.03,7.20185058]
[1753187492771,10.79406079,200.07,200.03,7.20185058]
[1753187492950,26.0,200.04,200.02,7.20185058]
[1753187493147,26.0,200.04,200.0,7.20185058]
[1753187493348,30.99907008,200.04,200.0,7.87185058]
[1753187493676,30.99907008,200.04,200.0,7.20185058]
[1753187494677,0.06,200.03,200.0,7.20185058]
[1753187494976,0.06,200.03,199.98,0.67]
[1753187495188,0.06,200.03,200.0,7.20185058]
[1753187495387,0.06,200.03,200.01,7.20185058]
[1753187495679,0.06,200.03,200.02,7.87185058]